bitfinex/quotes_ETHUSD_20241129
["timestamp","ask_amount","ask_price","bid_price","bid_amount"]
[1732889405509,0.08658549,3612.2,3611.9,2.76862]
[1732889405742,2.76816,3612.5,3611.9,2.76862]
[1732889405904,0.08658491,3612.4,3611.9,2.76862]
[1732889406118,0.08658491,3612.3,3611.9,2.76862]
[1732889406351,0.08658491,3612.2,3611.9,2.76862]
[1732889406657,2.76816,3612.5,3611.9,3.622359]
[1732889406853,0.08658488,3612.4,3611.9,3.622359]
[1732889407166,2.85483488,3612.4,3611.9,0.853739]
[1732889407392,0.08658488,3612.3,3611.6,3.0]
[1732889407514,2.76847,3612.1,3611.6,3.0]
[1732889408227,2.7685,3612.1,3611.3,2.76905]
[1732889408552,0.08659197,3612.0,3611.5,2.7689]
[1732889408859,0.8054,3612.2,3611.6,2.76883]
[1732889409149,0.08658988,3612.1,3611.6,2.76883]
[1732889409361,3.57381,3612.2,3611.6,2.76883]
[1732889409562,0.08659007,3612.1,3611.6,2.76883]
[1732889409711,0.13854287,3612.3,3611.7,2.76876]
[1732889409913,0.0865892,3612.2,3611.9,3.53907]
[1732889410217,0.08658648,3612.7,3612.6,2.76808]
[1732889410424,2.76743,3613.5,3612.0,3.0]
[1732889410425,0.08657108,3613.1,3612.7,2.76798]
[1732889410739,0.08657108,3613.0,3612.7,2.76798]
[1732889410931,0.08656392,3613.2,3612.7,2.76798]
[1732889411167,0.08656392,3613.2,3612.5,3.53865]
[1732889411168,0.08656392,3613.2,3612.6,5.76808]
[1732889411377,2.85419392,3613.2,3612.6,5.76808]
[1732889411586,0.8054,3613.3,3612.7,2.768]
[1732889411893,2.85425454,3613.2,3612.5,6.53863]
[1732889412067,2.76769,3613.2,3612.5,6.53863]
[1732889412271,2.76769,3613.2,3612.6,2.76808]
[1732889413211,2.76769,3613.2,3612.5,3.7705]
[1732889413366,2.76783,3613.0,3612.5,3.0]
[1732889413702,2.76769,3613.2,3612.6,2.76808]
[1732889414287,2.76769,3613.2,3612.5,3.0]
[1732889414486,2.76782,3613.0,3612.5,3.0]
[1732889414818,2.76786,3612.9,3612.3,3.0]
[1732889415018,2.76794,3612.8,3612.3,3.0]
[1732889415223,0.7556,3612.8,3612.1,0.7524]
[1732889415422,0.7677,3613.1,3612.6,2.76807]
[1732889415587,1.32223192,3613.4,3612.8,2.76788]
[1732889416310,2.76759,3613.3,3612.7,0.7862]
[1732889416520,4.08971192,3613.4,3612.8,2.76791]
[1732889416875,1.32223192,3613.4,3612.8,2.76791]
[1732889417104,1.32223192,3613.4,3613.0,2.76773]
[1732889417531,1.32223192,3613.4,3612.7,3.7862]
[1732889417688,2.76763,3613.2,3612.7,3.0]
[1732889418577,4.08977192,3613.4,3612.4,0.798]
[1732889418578,1.32223192,3613.4,3612.4,0.798]
[1732889418778,2.76782,3613.0,3612.4,2.76823]
[1732889419022,2.76798,3612.8,3612.2,3.0]
[1732889419180,2.76798,3612.8,3612.0,2.76853]
[1732889419181,0.772,3612.7,3612.0,2.76853]
[1732889419389,0.772,3612.7,3612.0,0.6663051]
[1732889419588,0.772,3612.7,3611.8,1.12590105]
[1732889419791,2.76829,3612.4,3611.8,3.10450105]
[1732889420179,2.76819,3612.5,3611.6,2.76879]
[1732889420411,2.76862,3611.9,3611.3,2.76908]
[1732889420677,0.7542,3611.8,3611.3,2.76907]
[1732889420872,3.52295,3611.8,3611.1,3.57371]
[1732889421100,0.7542,3611.8,3611.2,2.76915]
[1732889421301,3.5229,3611.8,3611.2,2.76915]
[1732889421682,2.76879,3611.7,3611.1,0.8045]
[1732889422129,2.76879,3611.7,3611.1,3.8045]
[1732889422350,2.76879,3611.7,3611.1,3.0]
[1732889422498,0.7542,3611.8,3611.2,2.76915]
[1732889422698,3.52291,3611.8,3611.3,3.0]
[1732889423433,3.52293,3611.8,3611.3,3.0]
[1732889424027,2.76883,3611.7,3611.1,3.703542]
[1732889424202,2.76883,3611.7,3610.8,0.7818]
[1732889424739,2.76899,3611.5,3610.8,0.7818]
[1732889424952,2.76901,3611.4,3610.9,3.0]
[1732889425111,0.7542,3611.8,3610.8,3.0]
[1732889425311,2.51251087,3612.2,3610.5,3.60139]
[1732889425312,0.8054,3611.1,3610.6,3.0]
[1732889425499,3.56756,3611.5,3610.9,2.76938]
[1732889426010,2.76902,3611.4,3610.7,3.429629]
[1732889426600,3.56754,3611.5,3610.9,2.76936]
[1732889427134,2.76882,3611.7,3611.1,2.76923]
[1732889427303,2.76886,3611.6,3610.9,2.76938]
[1732889427637,2.76886,3611.6,3611.0,3.1122319]
[1732889427824,2.76881,3611.7,3611.1,2.76919]
[1732889428145,2.76879,3611.7,3611.1,2.76919]
[1732889429038,2.76879,3611.7,3611.0,3.3429519]
[1732889429243,2.76879,3611.7,3611.1,2.76923]
[1732889429432,0.752,3612.1,3611.4,2.76898]
[1732889429828,0.838602,3612.1,3611.4,2.76898]
[1732889430033,2.76855,3612.0,3611.4,2.76898]
[1732889430541,2.76863,3611.9,3611.4,2.76898]
[1732889430853,2.76863,3611.9,3611.2,3.0]
[1732889431146,2.76863,3611.9,3611.3,2.76903]
[1732889431439,2.76863,3611.9,3611.2,0.68941619]
[1732889431440,2.76839,3612.2,3611.2,0.68941619]
[1732889431743,2.76839,3612.2,3611.6,2.7688]
[1732889432149,2.76839,3612.2,3611.7,2.76877]
[1732889432306,3.57367,3612.4,3611.7,2.76877]
[1732889432507,2.76832,3612.3,3611.7,2.76877]
[1732889432804,0.8054,3612.4,3611.5,2.76891]
[1732889433012,2.76855,3612.0,3611.5,2.76891]
[1732889434217,2.76864,3611.9,3611.3,2.76905]
[1732889434522,2.76864,3611.9,3611.4,2.76899]
[1732889435022,2.76856,3612.0,3611.4,2.76899]
[1732889435842,2.76834,3612.3,3611.4,2.76899]
[1732889436055,2.76844,3612.2,3611.6,2.7688]
[1732889436744,3.57366,3612.4,3611.7,2.76877]
[1732889436944,2.76817,3612.5,3611.9,2.76862]
[1732889437134,0.7545,3612.6,3611.8,0.7799]
[1732889437347,3.52242,3612.9,3612.2,2.76833]
[1732889437714,0.7545,3612.9,3612.4,2.76824]
[1732889438111,2.76771,3613.1,3612.4,2.76824]
[1732889438335,2.76778,3613.0,3612.4,2.76824]
[1732889438548,2.76778,3613.0,3612.5,2.76816]
[1732889438713,3.56234,3613.2,3612.5,2.76816]
[1732889438913,0.08657113,3613.1,3612.6,2.76808]
[1732889439113,0.7947,3613.2,3612.8,2.76791]
[1732889439369,0.8039,3613.5,3612.6,3.321711]
[1732889439658,2.7676,3613.3,3612.7,2.768]
[1732889439855,2.76782,3613.0,3612.4,3.7725]
[1732889440053,2.85421015,3613.2,3612.4,3.7725]
[1732889440258,2.76784,3613.0,3612.4,3.7725]
[1732889440461,2.76787,3612.9,3612.4,3.7725]
[1732889440760,2.76783,3613.0,3612.4,0.7725]
[1732889441115,2.76786,3612.9,3612.5,3.0]
[1732889441457,2.76829,3612.4,3611.8,2.76868]
[1732889441760,3.57369,3612.4,3611.6,2.76883]
[1732889441961,2.76846,3612.2,3611.6,0.635601]
[1732889442166,2.76859,3612.0,3611.6,0.635601]
[1732889442554,2.76859,3612.0,3611.5,2.76892]
[1732889442930,2.76846,3612.2,3611.5,2.76892]
[1732889444673,2.7684,3612.2,3611.4,3.0]
[1732889444856,2.7684,3612.2,3611.6,2.76884]
[1732889445767,3.57366,3612.4,3611.8,2.76867]
[1732889446072,2.51251087,3612.9,3611.8,2.76867]
[1732889446073,2.76817,3612.5,3611.9,2.76862]
[1732889446665,2.76826,3612.4,3611.9,2.76862]
[1732889448353,2.76803,3612.7,3611.9,2.76862]
[1732889448545,2.76817,3612.5,3611.9,2.76862]
[1732889448863,2.76825,3612.4,3611.8,0.8188]
[1732889449239,2.76837,3612.3,3611.8,0.8188]
[1732889449568,0.8054,3612.8,3611.8,0.8188]
[1732889449771,0.8054,3612.8,3611.7,3.0]
[1732889449772,2.76837,3612.3,3611.7,3.0]
[1732889450963,2.7682,3612.5,3611.7,2.76873]
[1732889451162,2.76836,3612.3,3611.7,3.421303]
[1732889451365,0.94394014,3612.8,3611.5,3.52591]
[1732889451366,2.76856,3612.0,3611.5,0.757]
[1732889452686,2.76856,3612.0,3611.5,3.52592]
[1732889453046,0.8054,3612.1,3611.5,3.52592]
[1732889453354,3.57389,3612.1,3611.5,3.52592]
[1732889453663,0.8054,3612.1,3611.2,3.7791]
[1732889453877,2.76878,3611.7,3611.2,3.7791]
[1732889454079,0.8054,3612.1,3610.9,2.76935]
[1732889454080,2.76893,3611.5,3611.0,3.0]
[1732889454245,2.76909,3611.3,3610.9,0.7648]
[1732889454587,3.57433,3611.5,3610.8,3.0]
[1732889454739,2.76901,3611.4,3611.0,3.0]
[1732889455083,3.57437,3611.5,3610.9,2.76938]
[1732889455375,2.76907,3611.4,3610.8,3.653431]
[1732889455847,2.76907,3611.4,3610.8,6.422881]
[1732889456240,2.76907,3611.4,3611.0,3.0]
[1732889456440,2.76907,3611.4,3610.8,6.422831]
[1732889456674,2.7691,3611.3,3610.8,0.653431]
[1732889456978,2.76917,3611.2,3610.8,0.653431]
[1732889457641,0.7745,3611.7,3610.8,3.653431]
[1732889457843,0.0866066,3611.6,3611.1,3.0]
[1732889458190,3.54329,3611.7,3611.1,5.76921]
[1732889458340,2.76854,3612.0,3611.3,0.7666]
[1732889458536,2.85528188,3611.9,3611.3,0.7666]
[1732889458740,2.76868,3611.9,3611.3,0.7666]
[1732889459836,2.76868,3611.9,3611.3,3.53568]
[1732889460242,2.76856,3612.0,3611.4,3.0]
[1732889460476,3.54277,3612.1,3611.4,3.0]
[1732889460477,0.0865984,3611.9,3611.4,3.0]
[1732889460679,3.54277,3612.1,3611.4,3.0]
[1732889460680,0.0865984,3612.0,3611.6,2.76884]
[1732889460852,2.76847,3612.1,3611.6,2.76884]
[1732889461043,2.76833,3612.3,3611.6,2.76884]
[1732889461245,2.76817,3612.5,3611.9,3.52177]
[1732889461453,0.08658718,3612.4,3612.0,2.7685]
[1732889461643,0.08658718,3612.5,3612.1,2.76846]
[1732889461845,0.08658718,3612.6,3612.0,2.7685]
[1732889462064,0.08658718,3612.5,3612.1,2.76846]
[1732889462280,0.08658718,3612.6,3612.1,2.76846]
[1732889462490,0.08658718,3612.5,3612.1,2.76846]
[1732889462786,0.08658718,3612.4,3612.1,2.76846]
[1732889462939,2.90654661,3612.7,3612.1,2.76846]
[1732889463140,2.90654661,3612.7,3612.2,2.76834]
[1732889463141,0.08658385,3612.6,3612.2,2.76834]
[1732889463339,0.13853661,3612.9,3612.6,2.76803]
[1732889463612,3.44947289,3613.2,3612.6,3.52993]
[1732889463764,0.08656923,3613.1,3612.6,3.52993]
[1732889464169,0.08656923,3613.0,3612.6,3.52993]
[1732889464485,0.13853661,3613.3,3612.8,2.76793]
[1732889464655,0.08656461,3613.2,3612.7,2.76797]
[1732889464981,2.76741,3613.5,3612.8,2.76792]
[1732889465287,0.08655956,3613.4,3612.7,2.76801]
[1732889465447,0.08655956,3613.4,3612.6,3.52998]
[1732889465448,2.85412956,3613.3,3612.6,0.7619]
[1732889465645,2.7674,3613.5,3612.6,1.414907]
[1732889465969,2.7674,3613.5,3612.6,3.0]
[1732889465970,2.76755,3613.3,3612.6,3.0]
[1732889466151,2.76769,3613.2,3612.5,2.76816]
[1732889466350,2.76769,3613.2,3612.6,3.0]
[1732889466552,2.76779,3613.0,3612.4,3.0]
[1732889466743,0.8054,3613.2,3612.0,4.150682]
[1732889466943,2.76806,3612.7,3612.1,3.0]
[1732889468007,2.7681,3612.6,3612.1,3.0]
[1732889468769,2.76813,3612.6,3612.0,3.7985]
[1732889468997,2.76813,3612.6,3611.8,2.7687]
[1732889469183,2.76813,3612.6,3612.0,3.0]
[1732889469385,2.76823,3612.5,3612.0,3.0]
[1732889469905,2.76836,3612.3,3611.8,3.0]
[1732889470107,2.76825,3612.4,3611.8,6.49854508]
[1732889470309,0.8021,3612.5,3612.0,3.0]
[1732889470513,3.57028,3612.5,3612.0,3.0]
[1732889470671,0.8021,3612.5,3611.8,3.72985508]
[1732889470868,2.76824,3612.4,3611.9,0.73095251]
[1732889471071,2.76824,3612.4,3611.7,0.8109]
[1732889471072,2.76824,3612.4,3611.7,3.57961]
[1732889471307,2.76831,3612.3,3611.8,3.0]
[1732889472010,2.51251087,3612.4,3611.0,0.8214]
[1732889472310,2.76869,3611.9,3611.0,0.8214]
[1732889472515,2.51251087,3612.4,3611.0,0.8214]
[1732889472516,2.51251087,3612.4,3611.0,3.59066]
[1732889472718,2.76874,3611.8,3611.1,2.76918]
[1732889473024,2.76884,3611.7,3611.2,0.635994]
[1732889473316,2.76839,3612.2,3611.2,0.635994]
[1732889473317,2.76885,3611.6,3611.2,0.635994]
[1732889474195,2.76885,3611.6,3611.0,3.8214]
[1732889474397,2.76885,3611.6,3611.0,6.59069]
[1732889476131,2.76885,3611.6,3611.0,0.8214]
[1732889476324,2.76907,3611.4,3610.8,3.0]
[1732889476686,2.76909,3611.3,3610.8,3.0]
[1732889476996,2.76916,3611.2,3610.7,3.59802]
[1732889477322,2.76916,3611.2,3610.7,4.534792]
[1732889478892,2.76907,3611.4,3610.8,2.76945]
[1732889479227,2.76909,3611.3,3610.7,1.765272]
[1732889479532,2.76909,3611.3,3610.7,3.59798]
[1732889480241,0.7631,3611.7,3610.7,3.59798]
[1732889480394,2.76901,3611.4,3610.9,2.76933]
[1732889481089,2.76901,3611.4,3610.7,3.59798]
[1732889481293,2.76886,3611.6,3610.9,2.76934]
[1732889482497,2.76901,3611.4,3610.9,2.76934]
[1732889483031,2.76901,3611.4,3610.7,3.59801]
[1732889483257,0.7631,3611.7,3610.7,3.59801]
[1732889483542,2.76921,3611.2,3610.7,0.8285]
[1732889483836,2.76921,3611.2,3610.7,3.59804]
[1732889484004,2.76936,3611.0,3610.7,0.8285]
[1732889484333,2.7694,3610.9,3610.4,3.0]
[1732889484538,2.7694,3610.9,3610.4,5.76977]
[1732889484839,2.76928,3611.1,3610.4,5.76977]
[1732889485639,2.76918,3611.2,3610.5,2.76967]
[1732889485861,2.76924,3611.1,3610.6,3.0]
[1732889486640,2.76924,3611.1,3610.6,3.823]
[1732889487634,2.76936,3611.0,3610.6,0.823]
[1732889487840,0.7834,3610.9,3610.4,2.76977]
[1732889487993,2.76983,3610.4,3609.9,0.43336627]
[1732889488342,2.77011,3610.0,3609.4,0.8275]
[1732889488636,2.77011,3610.0,3609.5,0.359805]
[1732889489034,2.77,3610.1,3609.5,3.130265]
[1732889489496,2.77014,3610.0,3609.5,0.359805]
[1732889489906,2.51251087,3610.8,3609.6,0.826]
[1732889490261,2.77006,3610.1,3609.6,0.826]
[1732889490574,2.7702,3609.9,3609.3,0.8013]
[1732889490708,2.7702,3609.9,3609.3,1.158493]
[1732889490904,2.77006,3610.1,3609.3,4.158493]
[1732889491449,2.77006,3610.1,3609.5,3.0]
[1732889491748,2.77006,3610.1,3609.3,4.158493]
[1732889491946,2.77006,3610.1,3609.5,3.0]
[1732889492450,2.76987,3610.3,3609.5,3.0]
[1732889492648,2.77005,3610.1,3609.5,3.0]
[1732889492852,2.77005,3610.1,3609.5,5.77046]
[1732889493030,2.77005,3610.1,3609.6,2.77037]
[1732889493356,2.76987,3610.3,3609.7,2.7703]
[1732889493712,2.76978,3610.4,3609.9,2.77015]
[1732889493821,3.53447,3610.7,3609.9,2.77015]
[1732889494015,0.7649,3610.7,3610.1,2.76998]
[1732889494354,2.76865,3611.9,3610.8,2.76946]
[1732889494519,0.55702954,3611.6,3610.9,2.76932]
[1732889494717,0.55702954,3611.6,3611.0,2.76927]
[1732889494960,2.76898,3611.5,3610.9,2.76932]
[1732889495459,2.90767426,3611.4,3610.8,2.76945]
[1732889496231,0.13861426,3611.4,3610.9,2.76938]
[1732889496647,2.90767426,3611.4,3610.7,3.55814]
[1732889497168,0.13861426,3611.4,3610.8,2.76944]
[1732889497664,0.13861426,3611.4,3611.1,2.76919]
[1732889498219,0.13861426,3611.4,3610.9,2.76938]
[1732889498458,2.76893,3611.5,3610.9,2.76938]
[1732889499937,2.76909,3611.3,3610.7,3.55812]
[1732889500147,2.76909,3611.3,3610.7,0.7886]
[1732889500349,0.8054,3611.0,3610.4,0.8211]
[1732889500551,2.76959,3610.7,3610.2,3.0]
[1732889500724,2.76945,3610.9,3610.2,5.76985]
[1732889501249,2.76951,3610.8,3610.2,5.76985]
[1732889502054,2.76941,3610.9,3610.3,2.76984]
[1732889502637,2.76917,3611.2,3610.4,2.76977]
[1732889502861,2.76917,3611.2,3610.6,2.76956]
[1732889503024,0.7572,3611.3,3610.8,2.76946]
[1732889503227,3.52628,3611.3,3610.8,2.76946]
[1732889503428,2.76899,3611.5,3610.4,6.34044]
[1732889503665,2.85565242,3611.4,3610.7,2.76949]
[1732889503870,2.76904,3611.4,3610.7,2.76949]
[1732889504732,3.57427,3611.6,3610.5,1.3046424]
[1732889504933,2.85560175,3611.5,3610.8,2.76946]
[1732889505145,0.08661175,3611.4,3610.8,2.76946]
[1732889505865,2.85562175,3611.4,3610.8,2.76946]
[1732889506069,0.08661175,3611.3,3610.8,2.76946]
[1732889506281,2.7691,3611.3,3610.8,2.76946]
[1732889506588,0.08661263,3611.3,3610.8,2.76946]
[1732889506743,2.76898,3611.5,3610.8,2.76946]
[1732889506946,2.85562292,3611.4,3610.8,2.76946]
[1732889507143,2.85576292,3611.3,3610.6,2.76962]
[1732889507373,2.76914,3611.3,3610.6,2.76962]
[1732889507577,0.8054,3611.6,3610.4,0.8009]
[1732889507578,0.08661475,3611.2,3610.4,0.8009]
[1732889507781,0.08661475,3611.5,3610.9,2.76938]
[1732889507967,0.08661475,3611.5,3611.3,2.76902]
[1732889508150,0.08661475,3611.9,3611.7,2.76877]
[1732889508468,0.08661475,3612.3,3611.9,2.7686]
[1732889508655,0.08661475,3612.4,3611.9,2.7686]
[1732889509089,0.7832,3612.6,3611.9,2.7686]
[1732889509090,0.08658273,3612.5,3611.9,2.7686]
[1732889509390,3.55133,3612.6,3612.0,2.7685]
[1732889509551,3.55133,3612.6,3612.1,2.76846]
[1732889509880,3.55133,3612.6,3611.9,2.7686]
[1732889510093,2.76837,3612.3,3611.8,3.0]
[1732889510310,2.76833,3612.3,3611.7,3.8175]
[1732889510608,2.76816,3612.5,3611.9,2.7686]
[1732889510885,2.76824,3612.4,3611.7,6.58622]
[1732889511051,2.76824,3612.4,3611.8,2.76868]
[1732889511248,6.31944,3612.6,3611.9,2.7686]
[1732889511457,3.5513,3612.6,3612.0,2.7685]
[1732889511669,0.7832,3612.6,3612.2,2.76838]
[1732889512191,2.76794,3612.8,3612.2,2.76838]
[1732889512954,0.7928,3613.0,3611.7,0.8175]
[1732889513153,0.7928,3613.0,3612.4,3.57163]
[1732889513394,0.08657654,3613.1,3612.6,2.76808]
[1732889513684,2.76768,3613.2,3612.6,2.76808]
[1732889514394,3.56035,3613.3,3612.6,2.76801]
[1732889514688,2.76764,3613.2,3612.6,2.76806]
[1732889514987,3.56035,3613.3,3612.7,2.76801]
[1732889516457,3.56035,3613.3,3612.5,2.76814]
[1732889516653,2.76788,3612.9,3612.4,3.8034]
[1732889516981,2.76798,3612.8,3612.2,3.0]
[1732889517356,2.76798,3612.8,3612.2,5.76838]
[1732889517568,2.76798,3612.8,3612.2,2.76838]
[1732889517770,2.76779,3613.0,3612.3,2.76824]
[1732889517970,2.76781,3613.0,3612.3,2.76824]
[1732889518595,2.76781,3613.0,3612.4,2.7682]
[1732889518800,2.76765,3613.2,3612.5,2.76816]
[1732889519007,3.56037,3613.3,3612.7,2.76798]
[1732889519166,3.56037,3613.3,3612.6,0.7517]
[1732889519507,3.56037,3613.3,3612.6,6.51972]
[1732889520010,2.76771,3613.1,3612.6,6.51972]
[1732889520227,2.76771,3613.1,3612.3,2.76829]
[1732889520524,0.785,3612.5,3611.3,0.7826]
[1732889520813,3.55321,3612.5,3611.9,2.76862]
[1732889520998,2.76803,3612.7,3612.1,2.76846]
[1732889521201,2.76803,3612.7,3612.2,2.76839]
[1732889521370,0.785,3612.8,3612.0,3.55114]
[1732889521570,2.76801,3612.7,3612.1,0.355114]
[1732889521808,2.76801,3612.7,3612.0,0.7826]
[1732889522014,2.76801,3612.7,3612.1,2.76847]
[1732889522185,0.8007,3613.0,3612.2,2.76833]
[1732889522386,0.8007,3613.0,3612.4,2.76823]
[1732889522607,3.56848,3613.0,3612.4,2.76823]
[1732889523617,3.56851,3613.0,3612.1,3.0]
[1732889523776,2.76793,3612.8,3612.2,2.76834]
[1732889523972,3.56851,3613.0,3612.3,2.76831]
[1732889524777,2.76787,3612.9,3612.3,2.76831]
[1732889525408,2.76798,3612.8,3612.2,2.76838]
[1732889526009,2.76807,3612.7,3612.0,0.7826]
[1732889526176,2.76817,3612.5,3612.0,0.7826]
[1732889526706,2.76807,3612.7,3612.0,0.7826]
[1732889526707,2.76825,3612.4,3612.0,0.7826]
[1732889527403,2.76809,3612.6,3612.0,0.7826]
[1732889527621,2.76809,3612.6,3612.1,3.0]
[1732889527819,2.76794,3612.8,3612.1,2.76846]
[1732889528219,2.76785,3612.9,3612.1,2.76846]
[1732889528516,2.76805,3612.7,3612.1,2.76846]
[1732889528691,2.76798,3612.8,3612.1,2.76846]
[1732889528897,2.76809,3612.6,3612.0,3.7826]
[1732889529095,0.8007,3613.0,3611.6,0.8152]
[1732889529294,2.76856,3612.0,3611.6,0.8152]
[1732889529491,2.76861,3612.0,3611.6,0.8152]
[1732889529719,2.76863,3611.9,3611.6,0.8152]
[1732889529921,2.76829,3612.4,3611.8,2.76868]
[1732889530147,2.76829,3612.4,3611.6,0.8152]
[1732889530148,2.76839,3612.2,3611.7,2.76877]
[1732889530345,2.76829,3612.4,3611.7,2.76877]
[1732889530646,2.76844,3612.2,3611.6,3.8152]
[1732889531447,2.76862,3611.9,3611.5,3.0]
[1732889531737,2.7685,3612.1,3611.4,3.0]
[1732889532039,2.76863,3611.9,3611.4,3.957316]
[1732889532340,2.76863,3611.9,3611.3,0.8041]
[1732889532341,2.76872,3611.8,3611.3,0.8041]
[1732889532549,2.76872,3611.8,3611.3,3.57318]
[1732889533039,2.76872,3611.8,3611.3,0.8041]
[1732889533248,2.76893,3611.6,3611.0,3.58401]
[1732889533408,2.76893,3611.5,3611.1,3.0]
[1732889533746,2.76906,3611.4,3610.7,0.8147]
[1732889534449,2.76916,3611.2,3610.7,3.58424]
[1732889534956,2.76895,3611.5,3611.0,2.7693]
[1732889535938,2.76895,3611.5,3610.8,2.76942]
[1732889536207,2.76895,3611.5,3610.8,5.53882]
[1732889536448,2.76895,3611.5,3610.9,2.76937]
[1732889536631,2.76908,3611.3,3610.8,2.7694]
[1732889536953,2.76895,3611.5,3610.8,2.7694]
[1732889537241,2.76905,3611.4,3610.8,2.7694]
[1732889537427,2.76905,3611.4,3610.9,2.76938]
[1732889537754,2.76892,3611.6,3610.9,2.76938]
[1732889538413,2.76906,3611.4,3610.8,2.7694]
[1732889538950,2.76897,3611.5,3610.7,4.488109]
[1732889539112,2.76906,3611.4,3610.8,2.76941]
[1732889539306,2.76906,3611.4,3610.7,1.488109]
[1732889539617,2.76914,3611.3,3610.7,0.8147]
[1732889539820,2.76914,3611.3,3610.7,3.58424]
[1732889540531,2.76914,3611.3,3610.8,2.76944]
[1732889540905,2.76899,3611.5,3610.8,2.76944]
[1732889541131,2.76901,3611.4,3610.8,2.76944]
[1732889541544,2.76906,3611.4,3610.8,2.76944]
[1732889542309,2.76892,3611.6,3610.9,2.76933]
[1732889542551,2.76901,3611.4,3610.8,2.76945]
[1732889543064,2.76881,3611.7,3611.0,2.76924]
[1732889543218,2.76881,3611.7,3611.1,2.76919]
[1732889544621,2.76881,3611.7,3611.0,2.76924]
[1732889545169,2.76893,3611.5,3611.0,2.76924]
[1732889545325,2.76901,3611.4,3610.8,3.442833]
[1732889545666,2.76893,3611.5,3610.9,2.76934]
[1732889546748,2.76893,3611.5,3611.0,2.7693]
[1732889547264,2.76878,3611.7,3611.0,2.7693]
[1732889547265,5.53761,3611.7,3611.0,2.7693]
[1732889547417,2.76878,3611.7,3611.0,3.4719723]
[1732889547622,2.76878,3611.7,3611.0,0.7026723]
[1732889547971,0.7676,3612.1,3611.0,0.7026723]
[1732889547972,3.53613,3612.1,3611.2,2.76916]
[1732889548276,2.76864,3611.9,3611.3,2.76903]
[1732889548422,2.76864,3611.9,3611.2,2.76916]
[1732889548618,2.76864,3611.9,3611.4,2.76899]
[1732889549025,2.76864,3611.9,3611.3,3.19197323]
[1732889549445,3.53613,3612.1,3611.4,2.76898]
[1732889549622,0.08659901,3612.0,3611.4,2.76898]
[1732889549824,2.85519901,3612.0,3611.3,3.19196323]
[1732889550022,2.7686,3612.0,3611.3,3.19196323]
[1732889550233,2.76862,3611.9,3611.3,3.19196323]
[1732889551652,2.76862,3611.9,3611.3,3.42293323]
[1732889551830,2.76886,3611.6,3611.1,0.7575]
[1732889552031,2.76886,3611.6,3610.3,2.76979]
[1732889552032,2.7691,3611.3,3610.8,0.807]
[1732889552236,0.7704,3611.5,3610.8,0.807]
[1732889552237,2.76916,3611.2,3610.8,0.807]
[1732889553576,2.7693,3611.1,3610.6,0.7877]
[1732889553933,2.76916,3611.2,3610.7,2.76954]
[1732889554140,2.7692,3611.2,3610.6,0.7877]
[1732889554959,2.7692,3611.2,3610.6,3.55731]
[1732889555536,2.769,3611.4,3610.6,3.55731]
[1732889555732,2.76916,3611.2,3610.7,2.76951]
[1732889555961,2.76914,3611.3,3610.7,0.632682]
[1732889556634,2.76914,3611.3,3610.7,3.402212]
[1732889557652,2.76914,3611.3,3610.8,2.76945]
[1732889558242,2.76902,3611.4,3610.8,2.76945]
[1732889558444,2.76909,3611.3,3610.7,0.632682]
[1732889558773,2.76909,3611.3,3610.7,3.402152]
[1732889559138,2.76909,3611.3,3610.8,2.76946]
[1732889560084,3.53937,3611.5,3610.9,2.76936]
[1732889560388,2.76905,3611.4,3610.8,2.76945]
[1732889560877,2.76878,3611.7,3610.8,3.4653922]
[1732889561093,2.76899,3611.5,3610.9,2.76937]
[1732889561291,0.08660705,3611.6,3611.0,2.76925]
[1732889561581,0.08660705,3611.5,3610.8,0.6959422]
[1732889561756,2.76913,3611.3,3610.8,0.6959422]
[1732889561942,5.53829,3611.3,3610.8,0.6959422]
[1732889562142,2.76913,3611.3,3610.8,0.6959422]
[1732889562444,2.76901,3611.4,3610.9,2.76938]
[1732889562653,0.08660715,3611.3,3610.9,2.76938]
[1732889562978,2.769,3611.5,3610.8,0.6959422]
[1732889563180,2.76914,3611.3,3610.8,0.6959422]
[1732889563384,2.76914,3611.3,3610.8,2.76945]
[1732889565070,2.76896,3611.5,3610.8,2.76945]
[1732889565251,0.0866062,3611.4,3611.2,2.76908]
[1732889565592,2.76855,3612.0,3611.4,3.6018]
[1732889565887,2.85521768,3611.9,3611.4,3.6018]
[1732889566050,2.7687,3611.8,3611.4,0.8328]
[1732889566245,0.08659768,3611.7,3611.4,0.8328]
[1732889566469,0.08659824,3611.8,3611.4,0.8328]
[1732889566652,2.76874,3611.8,3611.4,0.8328]
[1732889567885,2.76858,3612.0,3611.4,0.8328]
[1732889568097,2.85522714,3611.9,3611.4,0.8328]
[1732889568268,2.76863,3611.9,3611.4,0.8328]
[1732889568459,2.76858,3612.0,3610.8,3.0]
[1732889568460,2.76875,3611.8,3611.1,2.76917]
[1732889568665,0.08660124,3611.7,3611.1,4.157487]
[1732889568904,2.76875,3611.8,3611.2,2.76914]
[1732889569082,2.76878,3611.7,3611.1,4.157527]
[1732889569278,2.76858,3612.0,3611.1,1.388317]
[1732889569595,2.85522802,3611.9,3611.3,2.76903]
[1732889569889,2.7684,3612.2,3611.3,3.4616927]
[1732889570185,0.08659489,3612.1,3611.3,3.4616927]
[1732889570495,0.08659489,3612.0,3611.3,3.4616927]
[1732889570656,2.7684,3612.2,3611.3,3.4616927]
[1732889570855,0.08659472,3612.1,3611.3,0.6926527]